bitfinex-derivatives/quotes_SOLF0:USTF0_20241015
["timestamp","ask_amount","ask_price","bid_price","bid_amount"]
[1729012349172,8.18,154.51,154.41,40.38]
[1729012349568,8.18,154.51,154.47,3.2369]
[1729012349867,8.18,154.51,154.43,40.38]
[1729012349868,40.38,154.53,154.4,8.18]
[1729012350263,40.38,154.53,154.43,3.2377]
[1729012350264,3.2367,154.49,154.43,3.2377]
[1729012350661,3.2369,154.48,154.43,3.2377]
[1729012351062,40.38,154.55,154.45,3.2372]
[1729012351255,40.38,154.55,154.4,8.18]
[1729012351256,43.59794041,154.55,154.44,40.38]
[1729012351667,43.59794041,154.55,154.46,3.2372]
[1729012352072,3.2363,154.51,154.46,3.2372]
[1729012352262,43.59794041,154.55,154.46,3.2372]
[1729012352668,8.18,154.56,154.48,3.2366]
[1729012352866,3.24537048,154.55,154.47,40.38]
[1729012353166,48.56,154.56,154.44,40.38]
[1729012353766,3.2361,154.52,154.47,3.237]
[1729012354071,48.56,154.56,154.47,3.237]
[1729012354072,3.312726,154.55,154.47,3.237]
[1729012354272,48.56,154.56,154.48,3.2368]
[1729012354466,40.38,154.58,154.46,40.38]
[1729012354669,1.3664,154.59,154.49,40.38]
[1729012354967,8.18,154.59,154.5,1.3742]
[1729012355365,3.2348,154.58,154.5,1.3742]
[1729012355966,3.235,154.57,154.53,3.2356]
[1729012356174,40.38,154.58,154.47,1.3599]
[1729012356466,40.38,154.55,154.44,41.7054]
[1729012356764,51.75341057,154.55,154.46,3.237]
[1729012356973,51.75341057,154.55,154.44,1.3254]
[1729012357871,51.75341057,154.55,154.48,3.2368]
[1729012358060,51.75341057,154.55,154.44,1.3254]
[1729012358470,3.2363,154.51,154.47,3.2369]
[1729012359369,3.2359,154.53,154.5,3.2363]
[1729012359574,8.18,154.55,154.46,1.4088]
[1729012359881,8.18,154.55,154.48,3.2368]
[1729012360368,3.2361,154.52,154.48,3.2368]
[1729012360568,8.18,154.55,154.49,3.2365]
[1729012360773,51.7489358,154.55,154.46,1.4088]
[1729012360973,3.2365,154.5,154.46,1.4088]
[1729012361173,51.7489358,154.55,154.46,1.4088]
[1729012361371,40.38,154.53,154.44,1.3254]
[1729012361567,3.2371,154.47,154.44,1.3254]
[1729012361967,3.2369,154.48,154.44,1.3254]
[1729012362771,3.2372,154.47,154.42,8.18]
[1729012363075,40.38,154.5,154.42,8.18]
[1729012363267,3.2369,154.48,154.42,8.18]
[1729012363466,40.38,154.5,154.42,8.18]
[1729012363666,40.38,154.5,154.44,3.2375]
[1729012364069,3.2369,154.48,154.44,3.2375]
[1729012365772,3.2365,154.5,154.45,3.2373]
[1729012366079,3.2365,154.5,154.42,8.18]
[1729012366268,40.38,154.53,154.42,8.18]
[1729012366472,40.38,154.5,154.42,8.18]
[1729012366680,40.38,154.5,154.4,1.414]
[1729012366868,3.2378,154.44,154.4,4.6523]
[1729012367066,40.38,154.48,154.4,4.6523]
[1729012367463,3.2378,154.44,154.4,4.6523]
[1729012367675,40.38,154.48,154.4,1.414]
[1729012368073,8.38,154.5,154.4,1.414]
[1729012368273,51.9489358,154.55,154.42,40.38]
[1729012368582,3.2361,154.52,154.44,40.38]
[1729012368873,9.7254,154.56,154.47,3.2368]
[1729012369072,3.2362,154.51,154.44,40.38]
[1729012369267,9.7254,154.56,154.44,40.38]
[1729012369476,9.7254,154.56,154.45,2.7408]
[1729012369670,3.2359,154.52,154.48,3.2366]
[1729012370070,9.7254,154.56,154.48,3.2366]
[1729012370275,3.2364,154.5,154.47,3.237]
[1729012370478,40.38,154.53,154.39,40.38]
[1729012370779,3.2377,154.44,154.4,4.6524]
[1729012370976,40.38,154.47,154.38,1.3984]
[1729012371272,3.2382,154.42,154.38,3.2388]
[1729012371484,3.2382,154.42,154.35,11.0008]
[1729012371485,3.2382,154.42,154.35,2.6208]
[1729012371673,40.38,154.47,154.35,11.0008]
[1729012371868,3.238,154.43,154.35,11.0008]
[1729012372379,3.2378,154.43,154.38,3.2387]
[1729012372575,3.2378,154.43,154.35,11.0008]
[1729012373074,3.2381,154.42,154.35,11.0008]
[1729012373476,3.2381,154.42,154.38,3.2387]
[1729012374078,3.2383,154.41,154.38,3.2387]
[1729012374474,40.38,154.47,154.38,3.2387]
[1729012374973,3.2381,154.42,154.38,3.2387]
[1729012375375,40.38,154.47,154.37,3.2389]
[1729012375572,40.38,154.44,154.35,11.0008]
[1729012375881,1.3025,154.46,154.39,3.2386]
[1729012376181,1.3025,154.46,154.35,11.0008]
[1729012376682,3.2382,154.42,154.38,3.2387]
[1729012377284,3.2384,154.41,154.38,3.2387]
[1729012378183,1.3025,154.46,154.4,3.2383]
[1729012378681,1.3025,154.46,154.35,11.0008]
[1729012378682,40.38,154.5,154.37,40.38]
[1729012378884,8.38,154.49,154.37,40.38]
[1729012379081,48.76,154.5,154.37,40.38]
[1729012379276,1.3626,154.51,154.39,40.38]
[1729012379474,1.3626,154.51,154.4,8.38]
[1729012379685,3.2369,154.48,154.45,3.2374]
[1729012380179,1.3626,154.51,154.4,8.38]
[1729012380383,8.38,154.52,154.42,40.38]
[1729012380585,8.38,154.52,154.43,2.6663]
[1729012380988,3.237,154.47,154.44,3.2375]
[1729012381479,3.237,154.47,154.43,2.6663]
[1729012381480,3.22395698,154.51,154.43,2.6663]
[1729012381883,3.19193941,154.53,154.43,2.6663]
[1729012382087,3.2364,154.5,154.46,3.237]
[1729012382286,3.2364,154.5,154.44,1.415]
[1729012382482,3.2363,154.51,154.47,3.237]
[1729012382688,11.63314227,154.54,154.47,3.237]
[1729012383081,1.4028,154.55,154.49,3.2365]
[1729012383281,8.38,154.59,154.48,40.38]
[1729012383484,3.2344,154.6,154.5,40.38]
[1729012383691,8.38,154.65,154.52,40.38]
[1729012383888,11.64123789,154.65,154.53,1.4264]
[1729012384088,3.2349,154.58,154.53,1.4264]
[1729012384481,52.02123789,154.65,154.53,1.4264]
[1729012384682,40.38,154.62,154.53,1.4264]
[1729012384893,40.38,154.62,154.51,11.221]
[1729012385190,52.02123789,154.65,154.51,11.221]
[1729012385390,1.3175,154.67,154.55,40.38]
[1729012385599,48.76,154.73,154.64,3.2334]
[1729012385785,3.2323,154.7,154.61,1.4265]
[1729012385983,3.20540722,154.72,154.61,2.7675]
[1729012386190,9.6975,154.73,154.61,2.7675]
[1729012386388,3.2332,154.66,154.61,2.7675]
[1729012387090,3.2332,154.65,154.61,1.4265]
[1729012387291,43.59090868,154.7,154.61,1.4265]
[1729012387493,40.38,154.68,154.57,1.341]
[1729012387694,40.38,154.68,154.56,10.2064]
[1729012387695,40.38,154.65,154.56,2.7325]
[1729012387901,40.38,154.62,154.54,3.2354]
[1729012388105,3.2345,154.59,154.52,8.78]
[1729012388403,40.38,154.6,154.51,7.2746]
[1729012388598,40.38,154.6,154.51,4.0386]
[1729012389195,40.38,154.6,154.5,8.78]
[1729012389703,3.2353,154.55,154.51,3.2359]
[1729012390213,3.2356,154.54,154.5,3.2363]
[1729012390502,3.2356,154.54,154.47,78.72]
[1729012390503,40.38,154.6,154.48,40.38]
[1729012390697,3.2349,154.58,154.51,3.236]
[1729012390898,40.38,154.6,154.48,43.54119099]
[1729012391099,49.16,154.62,154.48,40.38]
[1729012391299,3.235,154.57,154.53,3.2357]
[1729012391795,3.2351,154.56,154.52,3.2359]
[1729012391999,49.16,154.62,154.52,3.2359]
[1729012392198,49.16,154.62,154.48,40.38]
[1729012392199,40.38,154.6,154.48,40.38]
[1729012392400,3.2356,154.54,154.5,3.2363]
[1729012392603,40.38,154.6,154.47,78.72]
[1729012393196,3.2355,154.54,154.5,3.2362]
[1729012393397,40.38,154.6,154.48,40.38]
[1729012393907,40.38,154.6,154.47,78.72]
[1729012394310,8.78,154.62,154.5,40.38]
[1729012394500,8.78,154.62,154.53,40.38]
[1729012395002,3.2344,154.6,154.56,3.235]
[1729012395208,3.2344,154.6,154.53,40.38]
[1729012395406,1.3163,154.64,154.53,40.38]
[1729012395605,3.234,154.62,154.56,3.2349]
[1729012395801,8.76,154.66,154.53,40.38]
[1729012396105,52.31055016,154.66,154.53,40.38]
[1729012396506,49.14,154.66,154.55,40.38]
[1729012396707,3.1763754,154.65,154.55,40.38]
[1729012397100,3.2342,154.61,154.57,3.2349]
[1729012397302,3.1763754,154.65,154.57,3.2349]
[1729012397609,3.234,154.62,154.56,3.2351]
[1729012397812,49.14,154.66,154.55,40.38]
[1729012398110,3.2339,154.62,154.58,3.2345]
[1729012398303,8.76,154.66,154.58,3.2345]
[1729012398698,8.76,154.66,154.55,40.38]
[1729012399614,3.234,154.62,154.59,3.2345]
[1729012399809,8.76,154.66,154.55,40.38]
[1729012400307,3.2338,154.63,154.59,3.2343]
[1729012400509,8.76,154.66,154.52,49.14]
[1729012401009,8.76,154.66,154.55,40.38]
[1729012401515,3.2336,154.64,154.6,3.2341]
[1729012402009,3.2338,154.63,154.59,3.2343]
[1729012402216,3.2338,154.63,154.55,40.38]
[1729012402217,8.76,154.66,154.55,40.38]
[1729012402411,8.76,154.66,154.56,8.38]
[1729012402714,3.16184559,154.68,154.57,40.38]
[1729012402912,40.38,154.74,154.6,40.38]
[1729012403110,4.64469712,154.73,154.61,12.4365]
[1729012403311,3.2324,154.69,154.64,3.2333]
[1729012403510,3.2324,154.69,154.61,12.4365]
[1729012403709,48.76,154.74,154.61,12.4365]
[1729012403910,3.31553743,154.73,154.61,12.4365]
[1729012404618,48.76,154.74,154.61,12.4365]
[1729012404619,3.2325,154.69,154.65,3.2331]
[1729012405212,48.76,154.74,154.62,40.38]
[1729012405427,40.38,154.79,154.65,40.38]
[1729012405607,1.3158,154.8,154.68,40.38]
[1729012405807,1.3158,154.8,154.69,4.1444]
[1729012406014,40.38,154.79,154.69,4.1444]
[1729012406306,3.2317,154.73,154.69,4.1444]
[1729012406508,40.38,154.79,154.69,4.1444]
[1729012406711,1.3158,154.8,154.69,4.1444]
[1729012407311,3.2311,154.76,154.71,3.2318]
[1729012407512,3.2311,154.76,154.69,4.1444]
[1729012407918,3.2311,154.76,154.72,3.2316]
[1729012408116,48.76,154.82,154.7,40.38]
[1729012408614,52.02362712,154.82,154.73,3.2315]
[1729012408813,52.02362712,154.82,154.7,40.38]
[1729012409015,8.38,154.82,154.7,40.38]
[1729012409213,3.2303,154.79,154.7,40.38]
[1729012409408,48.76,154.82,154.69,7.36794295]
[1729012409615,48.76,154.82,154.71,3.2318]
[1729012409822,48.76,154.82,154.69,4.1444]
[1729012409823,3.2311,154.76,154.69,4.1444]
[1729012410021,48.76,154.82,154.72,3.2317]
[1729012410212,48.76,154.82,154.69,4.1444]
[1729012410530,3.2308,154.77,154.73,3.2314]
[1729012411321,40.38,154.8,154.69,4.1444]
[1729012411820,3.2319,154.72,154.69,4.1444]
[1729012412520,3.2319,154.72,154.69,7.3768]
[1729012412723,40.38,154.77,154.65,8.38]
[1729012412724,40.38,154.75,154.65,8.38]
[1729012413518,40.38,154.75,154.68,3.2325]
[1729012413716,40.38,154.75,154.63,4.1872]
[1729012413922,40.38,154.75,154.64,8.38]
[1729012414120,40.38,154.75,154.66,3.233]
[1729012414724,40.38,154.75,154.64,8.38]
[1729012415023,1.4202,154.76,154.64,48.76]
[1729012415224,40.38,154.77,154.64,48.76]
[1729012415419,3.2315,154.74,154.64,48.76]
[1729012415621,3.2315,154.74,154.67,40.38]
[1729012415829,8.38,154.78,154.68,3.16241371]
[1729012416126,8.38,154.78,154.69,8.38]
[1729012416422,8.38,154.78,154.71,3.232]
[1729012416625,8.38,154.78,154.69,8.38]
[1729012416922,8.38,154.78,154.72,3.2317]
[1729012417421,8.38,154.78,154.69,8.38]
[1729012417627,3.2313,154.75,154.71,3.2319]
[1729012417816,8.38,154.78,154.69,8.38]
[1729012418224,3.2313,154.75,154.69,8.38]
[1729012419121,8.38,154.78,154.69,8.38]
[1729012419321,3.2319,154.72,154.69,8.38]
[1729012419628,8.38,154.78,154.69,48.76]
[1729012419827,3.231,154.76,154.69,48.76]
[1729012420035,3.231,154.76,154.73,3.2314]
[1729012420222,3.2315,154.74,154.69,8.38]
[1729012420424,1.3176,154.81,154.69,8.38]
[1729012420824,3.2313,154.75,154.69,8.38]
[1729012421227,1.3176,154.81,154.71,3.2318]
[1729012421424,1.3176,154.81,154.69,8.38]
[1729012421925,3.2313,154.75,154.71,3.2319]
[1729012422726,1.3176,154.81,154.71,3.2319]
[1729012422930,1.3176,154.81,154.69,8.38]
[1729012422931,3.2323,154.7,154.67,3.2328]
[1729012423526,3.25316783,154.76,154.65,8.38]
[1729012424828,3.2321,154.71,154.68,3.2325]
[1729012425034,3.25316783,154.76,154.65,8.38]
[1729012425627,40.38,154.75,154.65,8.38]
[1729012425831,24.83,154.74,154.63,4.1872]
[1729012426033,24.83,154.74,154.63,12.5672]
[1729012427031,3.29690858,154.76,154.64,24.83]
[1729012427433,33.21,154.77,154.64,24.83]
[1729012427622,33.21,154.77,154.67,3.2328]
[1729012428835,3.2328,154.67,154.63,12.5672]
[1729012429234,3.2332,154.66,154.63,4.6345]
[1729012429643,24.83,154.7,154.63,1.401]
[1729012429838,9.6945,154.72,154.59,1.4228]
[1729012429839,24.83,154.65,154.59,1.4228]
[1729012430038,24.83,154.65,154.54,1.3488]
[1729012430337,3.2348,154.58,154.55,3.2353]
[1729012430545,24.83,154.63,154.54,1.3488]
[1729012430731,26.1445,154.63,154.54,1.3488]
[1729012431130,3.17698994,154.62,154.54,1.3488]
[1729012431335,3.17698994,154.62,154.54,4.5842]
[1729012431839,3.2343,154.6,154.55,3.2353]
[1729012432047,26.1445,154.63,154.55,3.2353]
[1729012432436,3.2346,154.59,154.55,3.2353]
[1729012432936,24.83,154.65,154.58,3.2345]
[1729012433336,9.4397,154.68,154.56,32.95]
[1729012433540,9.4397,154.68,154.58,24.83]
[1729012433541,8.12,154.68,154.58,24.83]
[1729012433739,8.12,154.72,154.61,24.83]
[1729012433939,3.2328,154.68,154.62,1.4209]
[1729012434141,3.2328,154.68,154.62,44.441]
[1729012434742,3.233,154.67,154.64,3.2333]
[1729012434942,8.12,154.72,154.62,4.101]
[1729012435141,8.12,154.72,154.62,7.3346]
[1729012435945,3.2331,154.66,154.63,3.2336]
[1729012436249,8.12,154.72,154.62,4.101]
[1729012436555,3.2331,154.66,154.63,3.2336]
[1729012437043,40.34,154.7,154.58,40.34]
[1729012437248,40.34,154.7,154.36,274.13927398]
[1729012437249,3.2339,154.62,154.59,3.2344]
[1729012439048,40.34,154.7,154.58,40.34]
[1729012439249,8.12,154.72,154.58,40.34]
[1729012439445,8.12,154.72,154.59,1.4128]
[1729012439748,3.2336,154.64,154.6,3.2341]
[1729012439944,3.2336,154.64,154.59,1.4128]
[1729012440351,3.234,154.62,154.59,4.6472]
[1729012440747,40.34,154.7,154.59,1.4128]
[1729012440954,40.34,154.7,154.6,1.3603]
[1729012441355,40.34,154.7,154.61,3.2339]
[1729012441542,40.34,154.7,154.6,1.3603]
[1729012441744,3.2329,154.67,154.64,3.2333]
[1729012442050,8.12,154.72,154.62,1.412]
[1729012442246,3.2324,154.69,154.63,3.2334]
[1729012442555,8.12,154.72,154.62,1.412]
[1729012443450,40.34,154.7,154.62,1.412]
[1729012443951,3.2336,154.63,154.62,1.412]
[1729012444351,8.12,154.67,154.53,40.34]
[1729012444551,40.34,154.65,154.54,9.4969]
[1729012444753,43.54225082,154.65,154.54,9.4969]
[1729012444948,3.2334,154.64,154.59,3.2344]
[1729012445155,3.2334,154.64,154.58,40.34]
[1729012445455,8.12,154.69,154.58,40.34]
[1729012446245,3.2333,154.65,154.62,3.2337]
[1729012446556,8.12,154.69,154.62,3.2337]
[1729012446955,8.12,154.69,154.64,3.2334]
[1729012447456,3.2331,154.66,154.63,3.2336]
[1729012448755,40.34,154.72,154.64,3.2333]
[1729012448756,3.2328,154.67,154.64,3.2333]
[1729012448951,4.52250359,154.73,154.62,4.0655]
[1729012449160,12.64250359,154.73,154.62,4.0655]
[1729012449359,3.2328,154.68,154.65,3.2332]
[1729012450062,1.3197,154.73,154.62,4.0655]
[1729012450656,3.2326,154.69,154.66,3.2329]
[1729012451355,1.3197,154.73,154.62,4.0655]
[1729012451556,69.84,154.76,154.66,40.34]
[1729012451765,7.76,154.78,154.66,48.1]
[1729012451964,7.76,154.78,154.68,40.34]
[1729012452155,7.76,154.78,154.69,1.3534]
[1729012452665,7.76,154.78,154.7,2.7762]
[1729012452866,1.3976,154.81,154.7,2.7762]
[1729012453164,40.34,154.8,154.7,2.7762]
[1729012453658,3.2317,154.73,154.7,6.0084]
[1729012453865,40.34,154.77,154.7,1.4019]
[1729012454059,3.26394724,154.76,154.66,7.76]
[1729012454263,40.34,154.75,154.67,1.3674]
[1729012454457,43.64855258,154.75,154.67,1.3674]
[1729012454654,3.2316,154.73,154.67,4.6]
[1729012454857,43.64855258,154.75,154.67,4.6]
[1729012455759,3.2322,154.7,154.67,4.6]
[1729012456271,3.2326,154.68,154.67,1.3674]
[1729012456654,24.83,154.75,154.67,1.3674]
[1729012456861,3.2323,154.7,154.67,4.6001]
[1729012457861,28.12151577,154.75,154.65,3.2332]
[1729012458160,24.83,154.72,154.64,1.3891]
[1729012459164,24.83,154.76,154.68,3.2325]
[1729012459764,28.07569913,154.76,154.68,3.2325]
[1729012460174,3.2325,154.69,154.66,3.2329]
[1729012460471,28.07569913,154.76,154.64,1.3891]
[1729012460772,28.07569913,154.76,154.64,4.6225]
[1729012460773,24.83,154.72,154.64,4.6225]
[1729012460968,24.83,154.72,154.64,1.3891]
[1729012461366,32.59,154.72,154.63,1.3306]
[1729012461562,3.2334,154.65,154.63,1.3306]
[1729012461969,3.2334,154.64,154.63,1.3306]
[1729012462368,32.59,154.72,154.64,3.2334]
[1729012463364,3.233,154.67,154.64,3.2334]
[1729012463576,32.59,154.72,154.64,3.2334]
[1729012463776,3.233,154.66,154.63,4.5642]
[1729012463971,24.83,154.7,154.63,1.3306]
[1729012464174,24.83,154.7,154.6,1.4028]
[1729012464473,24.83,154.68,154.58,1.2972]
[1729012464667,28.1128821,154.68,154.58,2.7137]
[1729012464868,28.1128821,154.68,154.59,3.2344]
[1729012465177,24.83,154.65,154.58,1.4165]
[1729012465376,3.2345,154.6,154.56,3.235]
[1729012465580,24.83,154.65,154.56,3.235]
[1729012465892,3.2344,154.6,154.55,7.76]
[1729012466070,7.76,154.67,154.59,3.2344]
[1729012466466,3.2333,154.65,154.59,3.2344]
[1729012466775,7.76,154.67,154.59,3.2344]
[1729012467178,3.234,154.62,154.55,32.59]
[1729012467479,7.76,154.67,154.55,32.59]
[1729012468073,3.2342,154.61,154.58,3.2346]
[1729012468583,3.2333,154.65,154.62,3.2337]
[1729012468967,13.8441,154.71,154.6,1.3368]
[1729012469170,13.8441,154.71,154.61,3.2339]
[1729012469372,13.8441,154.71,154.6,1.3368]
[1729012469578,7.38,154.71,154.6,1.3368]
[1729012469882,3.2333,154.65,154.62,3.2337]
[1729012470082,7.38,154.71,154.6,1.3368]
[1729012470083,3.20252345,154.68,154.6,1.3368]
[1729012470273,3.2338,154.63,154.6,4.571]
[1729012470467,3.2338,154.63,154.6,1.3368]
[1729012471182,24.83,154.7,154.6,1.3368]
[1729012471378,3.2333,154.65,154.62,3.2338]
[1729012471579,7.38,154.7,154.6,1.3368]
[1729012471786,3.2329,154.67,154.63,3.2334]
[1729012472375,7.38,154.7,154.62,1.3277]
[1729012474085,3.2337,154.63,154.61,3.2339]
[1729012474486,32.21,154.7,154.61,3.2339]
[1729012474984,3.2335,154.64,154.61,3.2339]
[1729012475479,3.2335,154.64,154.6,8.7168]
[1729012475480,3.26368223,154.68,154.6,8.7168]
[1729012475685,32.21,154.7,154.6,8.7168]
[1729012476088,3.2334,154.65,154.62,3.2337]
[1729012476281,7.38,154.7,154.61,24.83]
[1729012476786,3.2329,154.67,154.64,3.2333]
[1729012476990,7.38,154.7,154.64,3.2333]
[1729012477286,1.3673,154.73,154.65,3.2331]
[1729012477685,3.2327,154.68,154.61,24.83]
[1729012477883,1.3673,154.73,154.61,24.83]
[1729012478087,69.86,154.74,154.63,24.83]
[1729012478088,7.38,154.74,154.63,24.83]
[1729012478283,7.38,154.74,154.64,2.7145]
[1729012478685,3.2324,154.69,154.66,3.2329]
[1729012479197,3.2329,154.67,154.64,5.9479]
[1729012479381,7.38,154.74,154.64,2.7145]
[1729012479893,3.2327,154.68,154.65,3.2331]
[1729012480085,7.38,154.74,154.64,2.7145]
[1729012480482,3.2326,154.69,154.66,3.2329]
[1729012481982,3.2326,154.68,154.66,3.2329]
[1729012482195,3.2326,154.68,154.64,2.7145]
[1729012482391,3.2326,154.68,154.65,3.2331]
[1729012482889,3.2329,154.67,154.61,24.83]
[1729012483192,3.2329,154.67,154.61,27.5684]
[1729012483589,7.38,154.74,154.61,27.5684]
[1729012483794,7.38,154.74,154.63,24.83]
[1729012484389,7.38,154.74,154.61,27.5684]
[1729012485099,3.2327,154.68,154.61,27.5684]
[1729012485590,3.2327,154.68,154.65,3.2331]
[1729012487202,3.2324,154.69,154.66,3.2329]
[1729012487600,7.38,154.74,154.61,27.5684]
[1729012487800,3.2325,154.69,154.66,3.2329]
[1729012490900,3.2328,154.67,154.65,3.2331]
[1729012491095,7.38,154.74,154.65,3.2331]
[1729012491497,3.2327,154.68,154.65,3.2331]
[1729012496298,3.2327,154.68,154.63,15.52]
[1729012496503,3.2327,154.68,154.66,3.233]
[1729012496707,1.4293,154.78,154.67,15.52]
[1729012496907,23.93544364,154.77,154.69,3.2323]
[1729012497114,3.2317,154.73,154.68,1.3052]
[1729012497418,22.9,154.77,154.68,1.3052]
[1729012497711,3.2318,154.72,154.7,3.2322]
[1729012499011,3.2318,154.72,154.69,3.2323]
[1729012499707,15.52,154.75,154.68,1.3052]
[1729012500118,3.2324,154.69,154.67,3.2327]
[1729012500507,15.52,154.73,154.64,7.14]
[1729012500708,6.4618,154.77,154.67,15.52]
[1729012500908,21.9818,154.77,154.67,15.52]
[1729012501112,15.52,154.74,154.65,15.52]
[1729012501412,15.52,154.74,154.68,3.2325]
[1729012501619,15.52,154.74,154.65,15.52]
[1729012502020,15.52,154.71,154.62,1.3271]
[1729012502313,15.52,154.69,154.62,1.3271]
[1729012502517,3.2328,154.67,154.62,16.8471]
[1729012502915,7.14,154.71,154.64,15.52]
[1729012503110,7.14,154.75,154.66,15.52]
[1729012503514,3.2319,154.72,154.67,3.2327]
[1729012503717,3.2319,154.72,154.67,15.52]
[1729012504216,15.52,154.71,154.62,1.3271]
[1729012504523,15.52,154.68,154.62,1.3271]
[1729012505115,3.2332,154.66,154.62,4.5608]
[1729012505515,15.52,154.7,154.62,4.5608]
[1729012505817,15.52,154.66,154.55,15.52]
[1729012506117,15.52,154.64,154.56,8.5368]
[1729012506327,15.52,154.66,154.58,15.52]
[1729012506621,15.52,154.68,154.58,15.52]
[1729012506819,3.2337,154.63,154.6,3.2341]
[1729012507214,15.52,154.66,154.58,15.52]
[1729012507416,3.2331,154.66,154.6,15.52]
[1729012508125,3.2332,154.65,154.62,3.2338]
[1729012508315,7.14,154.7,154.62,15.52]
[1729012508825,3.2329,154.67,154.62,15.52]
[1729012509018,7.14,154.7,154.62,15.52]
[1729012509218,3.2334,154.64,154.61,10.374]
[1729012509433,7.14,154.7,154.61,22.66]
[1729012509721,15.52,154.69,154.61,7.14]
[1729012510419,3.2329,154.67,154.62,15.52]
[1729012510622,22.66,154.7,154.62,15.52]
[1729012511323,7.14,154.73,154.64,15.52]
[1729012511814,7.14,154.73,154.66,15.52]
[1729012512019,3.2324,154.69,154.66,18.7529]
[1729012512618,1.351,154.74,154.66,18.7529]
[1729012512619,15.63749008,154.81,154.68,15.52]
[1729012512818,24.12529008,154.81,154.71,15.52]
[1729012513015,8.4878,154.81,154.73,15.52]
[1729012513421,1.3478,154.81,154.73,15.52]
[1729012513725,106.80764794,154.83,154.73,15.52]
[1729012513922,106.80764794,154.83,154.74,3.2312]
[1729012514325,15.52,154.82,154.73,15.52]
[1729012514723,106.80764794,154.83,154.73,15.52]
[1729012515023,106.80764794,154.83,154.75,15.52]
[1729012515925,3.2302,154.8,154.76,3.2308]
[1729012516320,106.80764794,154.83,154.78,3.2304]
[1729012516519,106.80764794,154.83,154.72,7.44263061]
[1729012516520,106.80764794,154.83,154.77,15.52]
[1729012516929,3.2297,154.82,154.79,3.2301]
[1729012517126,106.80764794,154.83,154.77,15.52]
[1729012517327,106.80764794,154.83,154.76,7.14]
[1729012517625,1.3822,154.89,154.8,15.52]
[1729012518526,3.2292,154.85,154.81,3.2298]
[1729012519330,22.66,154.91,154.82,15.52]
[1729012519626,18.80896067,154.91,154.82,15.52]
[1729012519838,18.80896067,154.91,154.81,1.3322]
[1729012519839,15.52,154.89,154.81,1.3322]
[1729012520228,16.8468,154.89,154.81,1.3322]
[1729012520430,15.52,154.88,154.78,15.52]
[1729012521031,1.3268,154.89,154.81,3.2298]
[1729012521032,16.8468,154.89,154.81,3.2298]
[1729012521626,16.8468,154.89,154.8,18.7499]
[1729012521930,15.52,154.87,154.77,15.52]
[1729012522129,15.52,154.87,154.77,22.66]
[1729012522431,3.2305,154.78,154.77,7.14]
[1729012522634,15.52,154.83,154.74,7.14]